Cogmind - Beta 11 X2 @@@ ROGUE MODE // 2021.02.15 @ 01:10:45 Player: Luigi Panache Result: Destroyed by Y-64 Sentinel with Wave Gun Performance ------------- Evolutions (3) 1500 Regions Visited (10) 2000 Robots Destroyed (78) 390 Value Destroyed (2813) 2813 Prototype IDs (0) 0 Alien Tech Used (0) 0 Bonus (879) 879 TOTAL SCORE: 7582 Bonus ------- High Alert Combat Kills 179 Entered Garrisons 200 Used RIF Installer 500 Cogmind --------- Core Integrity 0/700 Matter 21/300 Energy 100/100 System Corruption 9% Temperature Cool (10) Movement Flying (40) Location -7/Lower Caves Parts ------- > --- POWER (1) -------- (None) > --- PROPULSION (4) --- Xenon Bombardment Thruster > --- UTILITY (6) ------ Visual Processing Unit Armor Integrity Analyzer > --- WEAPON (2) ------- Flail > --- INVENTORY (5) ---- Light Nuclear Core Medium Storage Unit Missile Launcher Remote Datajack Peak State ------------ > --- POWER ------------ Light Nuclear Core > --- PROPULSION ------- Light Treads Armored Treads Advanced Treads > --- UTILITY ---------- Improved Heat Sink Humpback Improved Signal Interpreter Improved Light Armor Plating > --- WEAPON ----------- Lightning Gun Heavy Missile Launcher > --- INVENTORY -------- Light Nuclear Core Light Treads Light Treads Wheel Large Storage Unit High-capacity Storage Unit Large Matter Pod Terrain Scanner Kinecellerator Improved Utility Shielding Lightning Gun Lightning Gun Lightning Gun Lightning Gun Lightning Gun Particle Gun Improved EM Pulse Cannon Improved EM Pulse Cannon Improved EM Pulse Cannon Improved EM Pulse Cannon Assault Rifle Light Assault Rifle Light Assault Rifle Light Assault Rifle Grenade Launcher Grenade Launcher Grenade Launcher Grenade Launcher Rocket Launcher Rocket Launcher Improved Grenade Launcher Heavy Missile Launcher Heavy Missile Launcher Heavy Missile Launcher Improved Datajack [Rating: 37] Favorites ----------- Power Light Nuclear Core Engine Ion Engine Power Core Light Nuclear Core Propulsion Light Treads Treads Light Treads Leg Aluminum Leg Wheel Compact Wheel Hover Unit Gravmag System Flight Unit Xenon Bombardment Thruster Utility Humpback Device Improved Heat Sink Storage Humpback Processor Improved Signal Interpreter Hackware Hacking Suite Protection Improved Light Armor Plating Weapon Lightning Gun Energy Gun Lightning Gun Energy Cannon Improved EM Pulse Cannon Ballistic Gun Assault Rifle Launcher Grenade Launcher Special Weapon Remote Datajack Impact Weapon Flail Special Melee Weapon Improved Datajack Build | -11 -10 -10 -10 -9 -8 -8 -7 -7 -7 -7 ------- Run | Scr Mat Min Exi Min Mat Gar Fac Was Fac Low Slots Evolved 6 | . . . . . 4 . 2 . . . Power . | . . . . . . . . . . . Propulsion 2 | . . . . . 1 . 1 . . . Utility 4 | . . . . . 3 . 1 . . . Weapon . | . . . . . . . . . . . Parts Attached 106 | 2 5 1 3 . 47 11 15 . 21 1 Power 8 | . . . . . 4 2 1 . 1 . Engine 2 | . . . . . 2 . . . . . Core 6 | . . . . . 2 2 1 . 1 . Reactor . | . . . . . . . . . . . Propulsion 29 | 2 . . 2 . 14 2 2 . 6 1 Treads 16 | 2 . . . . 9 2 2 . 1 . Leg . | . . . . . . . . . . . Wheel 7 | . . . 2 . 5 . . . . . Hover 3 | . . . . . . . . . 3 . Flight 3 | . . . . . . . . . 2 1 Utility 23 | . 2 1 1 . 7 1 5 . 6 . Device 5 | . 1 . . . 2 1 . . 1 . Storage 5 | . 1 . 1 . . . 1 . 2 . Processor 4 | . . . . . 2 . . . 2 . Hackware 2 | . . . . . . . 2 . . . Protection 7 | . . 1 . . 3 . 2 . 1 . Artifact . | . . . . . . . . . . . Weapon 46 | . 3 . . . 22 6 7 . 8 . Energy Gun 11 | . . . . . 7 2 1 . 1 . Energy Cannon 3 | . . . . . 2 1 . . . . Ballistic Gun 13 | . . . . . 7 . 3 . 3 . Ballistic Cannon . | . . . . . . . . . . . Launcher 15 | . 3 . . . 5 3 1 . 3 . Special Weapon 2 | . . . . . . . 2 . . . Impact Weapon 1 | . . . . . . . . . 1 . Slashing Weapon . | . . . . . . . . . . . Piercing Weapon . | . . . . . . . . . . . Special Melee Weapon 1 | . . . . . 1 . . . . . Unidentified Prototypes . | . . . . . . . . . . . Parts Lost 34 | . 1 . . . 11 7 2 6 7 . Power 6 | . . . . . 2 2 1 1 . . Propulsion 13 | . . . . . 3 2 . 3 5 . Utility 7 | . . . . . 3 1 1 1 1 . Weapon 8 | . 1 . . . 3 2 . 1 1 . Highest Loss Streak 6 | . 1 . . . 3 4 1 6 4 . Average Slot Usage (%) 82 | . 96 100 88 85 85 88 92 79 32 25 Engine 5 | . 14 14 14 14 4 3 . . . . Core 3 | . . . . . 4 5 5 6 . . Treads 20 | . 28 28 7 . 21 26 29 25 3 . Wheel 4 | . . . 20 28 4 . . . . . Device 6 | . 12 6 . . 8 8 7 6 . . Storage 9 | . 14 14 14 14 9 9 6 6 2 . Processor 8 | . . . . . 9 18 11 6 6 15 Hackware 1 | . . . . . . . 7 6 . . Protection 3 | . . 7 2 . 6 . 4 6 . . Energy Gun 5 | . . . . . 10 7 4 6 . . Energy Cannon 1 | . . . . . . 5 1 . . . Ballistic Gun 3 | . 9 . . . 5 . 2 5 4 . Launcher 7 | . 15 28 28 28 1 4 3 . . . Naked Turns 26 | . . . . . . . . 9 17 . Heaviest Build 261 | 13 32 34 251 251 261 261 256 62 25 2 Greatest Support 80 | 40 40 40 40 32 62 62 80 80 27 6 Greatest Overweight (x) 25 | . . . 15 7 25 6 3 1 5 . Average Overweight (x) 2 | . . . 5 7 5 4 . . . . Largest Inventory Capacity 35 | 8 15 15 35 35 35 35 35 20 10 5 Average Capacity 27 | 8 12 15 30 35 35 35 23 17 7 5 Most Carried 35 | 6 10 14 18 18 35 35 35 20 7 5 Average Carried 24 | 6 8 12 15 18 32 34 22 17 5 4 Final Capacity 35 | 8 15 15 35 35 35 35 20 5 5 5 Final Carried 35 | 6 10 14 18 18 35 35 20 5 5 4 Class Distribution -------------------- 65% | Hauler-Mutant 23% | Mutant 10% | Scavenger-Mutant Dominant Class ---------------- Mutant | -10/Materials Mutant | -10/Mines Hauler-Mutant | -10/Exiles Hauler-Mutant | -9/Mines Hauler-Mutant | -8/Materials Hauler-Mutant | -8/Garrison Scavenger-Mutant | -7/Factory Scavenger-Mutant | -7/Waste Mutant | -7/Factory Mutant | -7/Lower Caves Resources | -11 -10 -10 -10 -9 -8 -8 -7 -7 -7 -7 ----------- Run | Scr Mat Min Exi Min Mat Gar Fac Was Fac Low Matter Collected 2061 | 211 309 119 20 29 809 269 205 . 90 . Remotely . | . . . . . . . . . . . Salvage Created 2227 | . 178 56 . 40 1110 513 158 . 172 . Parts 143 | . 21 9 . 3 65 22 7 . 16 . Haulers Intercepted 1 | . 1 . . . . . . . . . Recyclers Shooed 2 | . 1 1 . . . . . . . . Parts Field Recycled . | . . . . . . . . . . . Retrieved Matter . | . . . . . . . . . . . Parts Self-Destructed . | . . . . . . . . . . . Prevented . | . . . . . . . . . . . Kills | -11 -10 -10 -10 -9 -8 -8 -7 -7 -7 -7 ------- Run | Scr Mat Min Exi Min Mat Gar Fac Was Fac Low Combat Hostiles Destroyed 69 | . 12 9 . 3 22 14 3 . 6 . Guns 14 | . . . . . 9 4 1 . . . Cannons 3 | . . . . . 2 1 . . . . AOE 51 | . 12 9 . 3 10 9 2 . 6 . Classes Destroyed 14 | . 5 2 . . 4 2 1 . . . Worker 2 | . 1 . . . 1 . . . . . Builder 4 | . . 2 . . . . 1 . 1 . Tunneler 1 | . . . . . 1 . . . . . Hauler 1 | . 1 . . . . . . . . . Recycler 1 | . . . . . 1 . . . . . Operator 4 | . 1 . . . 3 . . . . . Watcher 2 | . . . . . 1 . 1 . . . Swarmer 19 | . 6 3 . . 4 3 . . 3 . Grunt 35 | . 6 . . 3 14 7 2 . 3 . Duelist 1 | . . . . . . 1 . . . . Sentry 6 | . . . . . 4 2 . . . . Programmer 1 | . . . . . . . 1 . . . Behemoth 1 | . . . . . . 1 . . . . Assembled 6 | . . 6 . . . . . . . . Best Kill Streak 8 | . 6 8 . 3 4 4 2 . 4 . Combat Bots Only 6 | . 5 6 . 3 4 4 2 . 3 . Max Kills in Single Turn 6 | . 3 6 . 1 3 2 1 . 2 . Gunslinging . | . . . . . . . . . . . Exploded 4 | . 3 4 . 1 3 2 1 . 2 . Melee . | . . . . . . . . . . . Uniques/NPCs Destroyed . | . . . . . . . . . . . Combat | -11 -10 -10 -10 -9 -8 -8 -7 -7 -7 -7 -------- Run | Scr Mat Min Exi Min Mat Gar Fac Was Fac Low Damage Taken 5083 | . 186 34 . 55 1693 1047 397 174 1460 37 Core 1126 | . 16 9 . 19 210 153 31 91 560 37 Absorbed by Shields . | . . . . . . . . . . . Core Remaining (%) 72 | 100 . . . 82 . 34 . . . . Volleys Fired 204 | . 20 3 . 3 96 39 32 . 11 . Largest 2 | . 2 2 . 2 2 2 2 . 2 . Hottest 124 | . 60 60 . 60 110 124 78 . 91 . Shots Fired 339 | . 32 6 . 6 177 54 47 . 17 . Gun 245 | . . . . . 163 35 37 . 10 . Cannon 11 | . . . . . 4 5 2 . . . Launcher 77 | . 32 6 . 6 10 14 2 . 7 . Special 6 | . . . . . . . 6 . . . Kinetic 108 | . . . . . 77 . 22 . 9 . Thermal . | . . . . . . . . . . . Explosive 77 | . 32 6 . 6 10 14 2 . 7 . Electromagnetic 148 | . . . . . 90 40 17 . 1 . Robot Hit Streak 14 | . 2 1 . 2 12 14 7 . 7 . Robot Miss Streak 5 | . 4 3 . 1 5 2 2 . 2 . Penetration Max . | . . . . . . . . . . . Secondary Targets 4 | . . . . . 2 2 . . . . Max Gunslinging Chain 1 | . . . . . 1 1 . . . . Shots Hit Robots 217 | . 5 1 . 4 122 37 36 . 12 . Core Hits 157 | . 27 19 . 6 55 27 9 . 14 . Critical Hits 2 | . . . . . 1 . . . 1 . Critical Kills . | . . . . . . . . . . . Critical Parts Destroyed 2 | . . . . . 1 . . . 1 . Melee Attacks 1 | . . . . . . . . . 1 . Impact 1 | . . . . . . . . . 1 . Slashing . | . . . . . . . . . . . Piercing . | . . . . . . . . . . . Sneak Attacks . | . . . . . . . . . . . Combat Hostiles . | . . . . . . . . . . . Follow-up Attacks . | . . . . . . . . . . . Damage Inflicted 7973 | . 1191 421 . 258 2963 1751 592 . 797 . Guns 2756 | . . . . . 1863 372 384 . 137 . Cannons 212 | . . . . . 72 112 28 . . . Explosions 4936 | . 1186 412 . 255 1013 1267 166 . 637 . Melee . | . . . . . . . . . . . Ramming 69 | . 5 9 . 3 15 . 14 . 23 . Kinetic 1060 | . . . . . 647 . 286 . 127 . Thermal 302 | . . . . . 302 . . . . . Explosive 4634 | . 1186 412 . 255 711 1267 166 . 637 . Electromagnetic 1908 | . . . . . 1288 484 126 . 10 . Impact . | . . . . . . . . . . . Slashing . | . . . . . . . . . . . Piercing . | . . . . . . . . . . . Highest Corruption 9 | . . . . . . . 4 4 9 9 Average Corruption 5 | . . . . . . . 3 4 5 9 Corruption Purged . | . . . . . . . . . . . Effects 37 | . . . . . . . 10 2 23 2 Message Errors 11 | . . . . . . . 2 2 6 1 Matter Fused 11 | . . . . . . . 6 . 5 . Heat Flow Errors 4 | . . . . . . . 1 . 3 . Energy Discharges 5 | . . . . . . . 1 . 4 . Data Loss (minor) 2 | . . . . . . . . . 2 . Data Loss (major) 3 | . . . . . . . . . 2 1 Misfires 1 | . . . . . . . . . 1 . Overload Shots . | . . . . . . . . . . . Overflow Damage 69 | . . . . . 33 33 . . 3 . Projectiles . | . . . . . . . . . . . Explosions 69 | . . . . . 33 33 . . 3 . Melee . | . . . . . . . . . . . Knockbacks . | . . . . . . . . . . . Impact . | . . . . . . . . . . . Kinetic . | . . . . . . . . . . . Secondary . | . . . . . . . . . . . Self-Inflicted Damage 346 | . 51 19 . 25 165 83 . . 3 . Shots 17 | . 2 1 . 3 6 5 . . . . Rammed 30 | . 1 3 . 1 1 . 1 . 23 . Targets Rammed 31 | . 1 3 . 1 1 . 2 . 23 . Kicked . | . . . . . . . . . . . Crushed 1 | . . . . . . . 1 . . . Highest Temperature 158 | . 25 . . 18 114 100 151 . 158 . Average Temperature 36 | . 13 . . 16 37 28 58 . 69 . Received Heat Transfer 1794 | . 54 . . 18 747 336 36 . 594 9 Siege Activations . | . . . . . . . . . . . Robots Corrupted 1 | . . . . . 1 . . . . . Combat Hostiles 1 | . . . . . 1 . . . . . Parts Fried 7 | . . . . . 2 4 1 . . . Impact Corruptions . | . . . . . . . . . . . Robots Melted . | . . . . . . . . . . . Combat Hostiles . | . . . . . . . . . . . Parts Melted 1 | . . . . . 1 . . . . . Heat Transferred 400 | . . . . . 400 . . . . . Parts Sabotaged . | . . . . . . . . . . . Parts Stolen . | . . . . . . . . . . . Parts Stripped . | . . . . . . . . . . . Power Chain Reactions 4 | . . . . . 4 . . . . . Missiles Intercepted . | . . . . . . . . . . . Alert | -11 -10 -10 -10 -9 -8 -8 -7 -7 -7 -7 ------- Run | Scr Mat Min Exi Min Mat Gar Fac Was Fac Low Peak Influence 966 | . 262 152 . 85 309 966 711 198 267 . Initial 506 | . . 72 . . 33 203 506 198 82 . Average 310 | . 116 147 . 84 145 757 406 178 160 . Maximum Alert Level 3 | . 1 . . . 1 3 3 . 1 . Low Security (%) 49 | 100 71 100 . 100 62 . 28 100 64 . Level 1 21 | . 28 . . . 37 5 8 . 35 . Level 2 14 | . . . . . . 29 58 . . . Level 3 14 | . . . . . . 64 4 . . . Level 4 . | . . . . . . . . . . . Level 5 . | . . . . . . . . . . . High Security . | . . . . . . . . . . . Max Security . | . . . . . . . . . . . Squads Dispatched 13 | . 3 . . . 6 . 2 . 2 . Investigation 4 | . 1 . . . 2 . . . 1 . Extermination 1 | . . . . . . . 1 . . . Reinforcement 8 | . 2 . . . 4 . 1 . 1 . Assault . | . . . . . . . . . . . Garrison . | . . . . . . . . . . . Intercept . | . . . . . . . . . . . Construction Impeded 1 | . . . . . 1 . . . . . Haulers Reinforced 1 | . . . . . . . . . 1 . Stealth | -11 -10 -10 -10 -9 -8 -8 -7 -7 -7 -7 --------- Run | Scr Mat Min Exi Min Mat Gar Fac Was Fac Low Distress Signals 3 | . . . . . 2 . . . 1 . Communications Jammed . | . . . . . . . . . . . Distress Signals . | . . . . . . . . . . . Times Spotted 152 | . 17 6 . 2 53 25 5 6 29 9 Peak Tracking Total 9 | . 4 6 . 1 5 5 2 6 8 9 Tactical Retreats 28 | . 1 . . . 13 9 . . 5 . Traps | -11 -10 -10 -10 -9 -8 -8 -7 -7 -7 -7 ------- Run | Scr Mat Min Exi Min Mat Gar Fac Was Fac Low Traps Triggered 6 | . 1 . . . 1 1 1 . 2 . Indirectly . | . . . . . . . . . . . Trap Hack Attempts . | . . . . . . . . . . . Triggered . | . . . . . . . . . . . Disarmed . | . . . . . . . . . . . Reprogrammed . | . . . . . . . . . . . Reused . | . . . . . . . . . . . Traps Extracted . | . . . . . . . . . . . Installed . | . . . . . . . . . . . Triggered 1 | . . . . . . . 1 . . . Machines | -11 -10 -10 -10 -9 -8 -8 -7 -7 -7 -7 ---------- Run | Scr Mat Min Exi Min Mat Gar Fac Was Fac Low Machines Disabled 4 | . 1 . . . 1 2 . . . . Max in Single Turn 1 | . 1 . . . 1 1 . . . . Garrison Relay 2 | . . . . . . 2 . . . . Machines Sabotaged . | . . . . . . . . . . . Garrisons Compromised . | . . . . . . . . . . . Overloaded Fab Kills . | . . . . . . . . . . . Fab Network Shutdowns . | . . . . . . . . . . . Hacking | -11 -10 -10 -10 -9 -8 -8 -7 -7 -7 -7 --------- Run | Scr Mat Min Exi Min Mat Gar Fac Was Fac Low Machines Accessed 9 | . 1 . 1 . 3 . 1 . 3 . Terminals 4 | . 1 . . . 2 . . . 1 . Fabricators 1 | . . . . . . . . . 1 . Repair Stations 1 | . . . . . . . 1 . . . Recycling Units 1 | . . . . . . . . . 1 . Scanalyzers . | . . . . . . . . . . . Garrison Access 1 | . . . . . 1 . . . . . Total Hacks 17 | . 2 . 1 . 5 . 2 . 7 . Successful 8 | . . . 1 . 3 . 2 . 2 . Failed 9 | . 2 . . . 2 . . . 5 . Catastrophic 5 | . . . . . 2 . . . 3 . Database Lockouts . | . . . . . . . . . . . Manual 4 | . 2 . . . 1 . . . 1 . Terminals 9 | . 2 . . . 4 . . . 3 . Fabricators 2 | . . . . . . . . . 2 . Repair Stations 2 | . . . . . . . 2 . . . Recycling Units 2 | . . . . . . . . . 2 . Scanalyzers . | . . . . . . . . . . . Garrison Access 1 | . . . . . 1 . . . . . Terminal Hacks 5 | . . . 1 . 2 . . . 2 . Record 1 | . . . 1 . . . . . . . Robot Analysis 1 | . . . . . . . . . 1 . Branch Access Points 2 | . . . . . 1 . . . 1 . Alert Level 1 | . . . . . 1 . . . . . Fabricator Hacks . | . . . . . . . . . . . Repair Station Hacks 2 | . . . . . . . 2 . . . Scan Component 1 | . . . . . . . 1 . . . Repair 1 | . . . . . . . 1 . . . Recycling Unit Hacks . | . . . . . . . . . . . Scanalyzer . | . . . . . . . . . . . Garrison Access Hacks 1 | . . . . . 1 . . . . . Unlock Access 1 | . . . . . 1 . . . . . Unauthorized Hacks . | . . . . . . . . . . . Terminals . | . . . . . . . . . . . Fabricators . | . . . . . . . . . . . Repair Stations . | . . . . . . . . . . . Recycling Units . | . . . . . . . . . . . Scanalyzers . | . . . . . . . . . . . Garrison Access . | . . . . . . . . . . . Data Cores Recovered . | . . . . . . . . . . . Used . | . . . . . . . . . . . Hacking Detections 7 | . 1 . . . 3 . . . 3 . Full Trace Events 2 | . . . . . 1 . . . 1 . Feedback Events . | . . . . . . . . . . . Feedback Blocked . | . . . . . . . . . . . Robot Schematics Acquired . | . . . . . . . . . . . Robots Built . | . . . . . . . . . . . Matter . | . . . . . . . . . . . Time . | . . . . . . . . . . . Total Robot Build Rating . | . . . . . . . . . . . Part Schematics Acquired . | . . . . . . . . . . . Parts Built . | . . . . . . . . . . . Matter . | . . . . . . . . . . . Time . | . . . . . . . . . . . Total Part Build Rating . | . . . . . . . . . . . Parts Repaired . | . . . . . . . . . . . Time 38 | . . . . . . . 38 . . . Parts Recycled . | . . . . . . . . . . . Recycled Matter . | . . . . . . . . . . . Retrieved Matter . | . . . . . . . . . . . Retrieved Components . | . . . . . . . . . . . Parts Scanalyzed . | . . . . . . . . . . . Part Schematics Acquired . | . . . . . . . . . . . Parts Damaged . | . . . . . . . . . . . Bothacking | -11 -10 -10 -10 -9 -8 -8 -7 -7 -7 -7 ------------ Run | Scr Mat Min Exi Min Mat Gar Fac Was Fac Low Used RIF Installer 1 | . . . . . . 1 . . . . Robots Hacked 2 | . . . . . . . 2 . . . Non-combat 2 | . . . . . . . 2 . . . Combat . | . . . . . . . . . . . Robot Hacks Applied 3 | . . . . . . . 3 . . . purge_threat 2 | . . . . . . . 2 . . . relay_feed 1 | . . . . . . . 1 . . . Relay Couplers Released 7 | . . . . . . 7 . . . . Machine Destruction 7 | . . . . . . 7 . . . . Attached 1 | . . . . . . . 1 . . . Robots Rewired 1 | . . . . . 1 . . . . . Allies Hacked . | . . . . . . . . . . . Hacks Repelled . | . . . . . . . . . . . Allies | -11 -10 -10 -10 -9 -8 -8 -7 -7 -7 -7 -------- Run | Scr Mat Min Exi Min Mat Gar Fac Was Fac Low Total Allies 2 | . . . . . 1 . . 1 . . Largest Group 1 | . . . . . 1 . . 1 . . Highest-Rated Group 31 | . . . . . 16 . . 31 . . Highest-Rated Ally 31 | . . . . . 16 . . 31 . . Total Orders . | . . . . . . . . . . . Ally Attacks 11 | . . . . . 2 . . 9 . . Total Damage 179 | . . . . . 32 . . 147 . . Kills . | . . . . . . . . . . . Allies Corrupted . | . . . . . . . . . . . Allies Melted . | . . . . . . . . . . . Intel | -11 -10 -10 -10 -9 -8 -8 -7 -7 -7 -7 ------- Run | Scr Mat Min Exi Min Mat Gar Fac Was Fac Low Robot Analysis Total 1 | . . . . . . . . . 1 . Derelict Logs Recovered 1 | . . 1 . . . . . . . . Drone Launches . | . . . . . . . . . . . Drone Recoveries . | . . . . . . . . . . . Exploration | -11 -10 -10 -10 -9 -8 -8 -7 -7 -7 -7 ------------- Run | Scr Mat Min Exi Min Mat Gar Fac Was Fac Low Turns Passed 7152 | 3 540 306 598 278 2265 1434 834 138 729 27 Spaces Moved 2866 | 1 295 180 290 131 434 235 318 91 834 57 Core 93 | . . . . . . . . 28 39 26 Treads 1422 | 1 295 180 80 . 250 235 318 63 . . Legs . | . . . . . . . . . . . Wheels 525 | . . . 210 131 184 . . . . . Hover 125 | . . . . . . . . . 125 . Flight 701 | . . . . . . . . . 670 31 Fastest Speed 40 | 160 160 160 160 205 205 558 160 50 40 40 Average Speed 211 | 160 160 160 200 205 416 563 205 132 62 44 Slowest Speed 760 | 160 160 160 760 205 558 757 462 260 300 50 Overloaded Moves . | . . . . . . . . . . . Propulsion Burnouts . | . . . . . . . . . . . Robots Hopped 12 | . . . . . . . . . 12 . Cave-ins Triggered . | . . . . . . . . . . . Exploration Rate (%) 37 | 2 52 49 67 35 39 48 6 74 23 12 Regions Visited 10 Branch Regions 4 Pre-discovered Areas 1 | . . . 1 . . . . . . . Known Exits Taken 2 | . . . . . 1 . . . 1 . Unknown Exits Taken 5 | 1 1 1 1 1 . . . . . . Scrap Searched 1 | . . . . 1 . . . . . . Spaces Dug 1 | . . . . . . . . . 1 . Terrain Destroyed 452 | . 95 45 . 41 93 127 7 . 44 . Melee 1 | . . . . . . . . . 1 . Projectile 1 | . . . . . . . . . 1 . AOE 450 | . 95 45 . 41 93 127 7 . 42 . Terrain Rammed . | . . . . . . . . . . . Walls Destroyed . | . . . . . . . . . . . Machines Disabled . | . . . . . . . . . . . Actions | -11 -10 -10 -10 -9 -8 -8 -7 -7 -7 -7 --------- Run | Scr Mat Min Exi Min Mat Gar Fac Was Fac Low Total 3553 | 2 331 190 308 134 708 294 458 107 963 58 Wait 187 | . 1 . . . 81 7 55 17 26 . Move 2834 | . 294 179 289 130 434 233 318 90 810 57 Hop 11 | . . . . . . . . . 11 . Pick Up 90 | . 5 3 14 . 31 4 26 . 7 . Fast Attach 32 | . 4 1 1 . 7 3 4 . 12 . Attach 27 | . . . . . 10 4 3 . 9 1 Detach 13 | . 1 1 . . 1 . 2 . 8 . Swap 47 | 2 1 . 2 . 30 4 8 . . . Drop 37 | . 4 . 2 . 14 . 8 . 9 . Fire 204 | . 20 3 . 3 96 39 32 . 11 . Melee 1 | . . . . . . . . . 1 . Ram 23 | . . . . 1 . . . . 22 . Kick . | . . . . . . . . . . . Crush 8 | . 1 3 . . 1 . 2 . 1 . Escape Stasis 36 | . . . . . . . . . 36 . Rewire 3 | . . . . . 3 . . . . . Trap . | . . . . . . . . . . . Miscellaneous . | . . . . . . . . . . . Route ------- -11/Scrapyard -10/Materials (discovered 3 exits: [*Mat x2] / [*Min]) -10/Mines (discovered 3 exits: [*Mat x2] / *Exi) -10/Exiles -9/Mines -8/Materials (discovered 2 exits: *Fac / Gar) -8/Garrison -7/Factory -7/Waste -7/Factory (discovered 3 exits: [*Fac] / *Low x2) -7/Lower Caves History --------- Turn | Location | Event 4 | -11/Scrapyard | Discovered new exit (range 0) 4 | -11/Scrapyard | Entered Materials 234 | -10/Materials | Discovered new exit (range 14) 317 | -10/Materials | Build established: Mutant 475 | -10/Materials | Discovered new exit (range 12) 536 | -10/Materials | Discovered new exit (range 6) 544 | -10/Materials | Entered Mines 626 | -10/Mines | Assembled infested the area 709 | -10/Mines | Discovered new exit (range 6) 713 | -10/Mines | Received a Rocket Launcher from a helpful Derelict 746 | -10/Mines | Learned location of 1 exit from Materials 766 | -10/Mines | Discovered new exit (range 9) 794 | -10/Mines | Deemed a non-threat by the Exiles lab entrance 794 | -10/Mines | Discovered new exit (range 5) 850 | -10/Mines | Entered Exiles 890 | -10/Exiles | Met 8R-AWN 916 | -10/Exiles | Met EX-HEX 1076 | -10/Exiles | Met EX-DEC 1111 | -10/Exiles | Learned location of Zion (-6) 1148 | -10/Exiles | Met EX-BIN 1274 | -10/Exiles | Build established: Hauler-Mutant 1432 | -10/Exiles | Discovered new exit (range 10) 1448 | -10/Exiles | Entered Mines 1463 | -9/Mines | Met a Derelict bent on vengeance 1498 | -9/Mines | Discovered new exit (range 6) 1635 | -9/Mines | Excavation squad dispatched 1635 | -9/Mines | A large section of the Mines collapsed 1726 | -9/Mines | Entered Materials 1726 | -8/Materials | Evolved 4 slots: Propulsion x1, Utility x3 1727 | -8/Materials | Identified exit to Factory 2363 | -8/Materials | Lost 3 parts (2n1u) 3991 | -8/Materials | Identified exit to Garrison 3991 | -8/Materials | Entered Garrison 4298 | -8/Garrison | Core integrity fell below 50% 4299 | -8/Garrison | Spotted B-75 Beast 4308 | -8/Garrison | Destroyed B-75 Beast 4565 | -8/Garrison | Triggered checkpoint 4575 | -8/Garrison | Triggered checkpoint 4908 | -8/Garrison | Discovered exit to Factory (range 10) 4986 | -8/Garrison | Installed Relay Interface Framework 5106 | -8/Garrison | Triggered checkpoint 5144 | -8/Garrison | Lost 4 parts (1p1n1u1w) 5224 | -8/Garrison | Garrison Relay disabled 5425 | -8/Garrison | Entered Factory 5425 | -7/Factory | Evolved 2 slots: Propulsion x1, Utility x1 5951 | -7/Factory | Build established: Scavenger-Mutant 6259 | -7/Factory | Sucked down chute 6259 | -7/Factory | Entered Waste 6260 | -7/Waste | Met a frightened Derelict 6288 | -7/Waste | Spotted C-40 Crusher 6302 | -7/Waste | Spotted C-40 Crusher 6350 | -7/Waste | Spotted C-40 Crusher 6362 | -7/Waste | Crushed by Compactor (1 part destroyed, 1 dropped) 6364 | -7/Waste | Spotted C-40 Crusher 6374 | -7/Waste | Spotted C-40 Crusher 6375 | -7/Waste | Crushed by Compactor (1 part destroyed, 1 dropped) 6378 | -7/Waste | Crushed by Compactor (1 part destroyed, 2 dropped) 6378 | -7/Waste | Spotted C-40 Crusher 6388 | -7/Waste | Crushed by Compactor (1 part destroyed, 2 dropped) 6388 | -7/Waste | Discovered new exit (range 15) 6397 | -7/Waste | Entered Factory 6419 | -7/Factory | Lost 6 parts (1p3n1u1w) 6445 | -7/Factory | Identified exit to Lower Caves 6677 | -7/Factory | Build established: Mutant 6882 | -7/Factory | Lost 4 parts (3n1u) 6961 | -7/Factory | Core integrity fell below 50% 7093 | -7/Factory | Discovered new exit (range 16) 7122 | -7/Factory | Core integrity fell below 20% 7126 | -7/Factory | Entered Lower Caves 7150 | -7/Lower Caves | Attracted the attention of an 0b10 outpost 7153 | -7/Lower Caves | Destroyed by Y-64 Sentinel with Wave Gun Last Messages --------------- 07108_ System corrupted: Heat flow error (+190). 07113_ U-05 Engineer lays Concrete. 07119_ S-27 Virus destroyed. 07121_ S-27 Virus suffers critical hit. 07121_ S-27 Virus destroyed. 07121_ Xenon Bombardment Thruster destroyed. 07122_ S-27 Virus destroyed. 07123_ Acquired VTOL Module. 07124_ Dropped VTOL Module. 07124_ Acquired Xenon Bombardment Thruster. 07125_ Slammed into Y-54 Guardian. 07126_ Acquired 20 matter. LOCATION=LOWER CAVES GOAL=ESCAPE 07130_ System corrupted: Substantial component data lost. 07145_ ZMV4 WFAAOE%7TD#HKU PYSSDMW 07149_ Slug penetrates Wall. 07149_ S-27 Virus springs to life. 07149_ G-47 Trooper springs to life. 07150_ Y-64 Sentinel: "DETECTED UNIDENTIFIED DERELICT." Map ----- +----------------------------------------------------+ | ??????????????????????????????????????## #??### | | ??????????????????????????????????????## ##?## | | ??????????????????????????????????????# ##??# | | ??????????????????????????????????????# ##### | | ????????????????????????????? ????????# | | ????????????????????????????# ??####?# | | ?????????????????????????? ## ??# ## ## | | ?????????????????????????? ??# ##? | | ??????????????????????????? #?## ##?? | | ??????????????????????????? ??# #??? | | ????????????????????????##?# ??## ##?? | | ????????????????????????# ## ???##### #?? | | ????????????????????????# #??##### ## | | ????????????????????????# ??# | | ?????????????????????????# ??# | | ??????????????????????????# ?## #### | | ??????????????????????????# ?# #??##### | | ???????????????????????#### ## ##?????? | | ???????????????????????# #"# ##????? | | ???????????????????????# #????? | | ????????????????????????# ### ### #?? | | ???????????????????????## # # "# #??# | | ??????????????????????## # # g "# #???# | | ?????????????????????## Y # "# ?? | | ?????????????????????# sl ## "# ##??? | | ?????????????????????# @ # # "# #???? | | ?????????????????????## # #""""""# #???? | | ??????????????????????# s ######## ??? | | ??????????????????????# ### #?? | | ?????????????????????# #### #???# ## ?? | | ????????????????????# #?????????# #?# #? | | ????????????????????# #??????????##??##? | | ????????????????????# #### ##????????????????? | | ????????????????????####???#####?????????????????? | | ?????????????????????????????????????????????????? | | ?????????????????????????????????????????????????? | | ?????????????????????????????????????????????????? | | ?????????????????????????????????????????????????? | | ?????????????????????????????????????????????????? | | ?????????????????????????????????????????????????? | | ?????????????????????????????????????????????????? | | ?????????????????????????????????????????????????? | | ?????????????????????????????????????????????????? | | ?????????????????????????????????????????????????? | | ?????????????????????????????????????????????????? | | ?????????????????????????????????????????????????? | | ?????????????????????????????????????????????????? | | ?????????????????????????????????????????????????? | | ?????????????????????????????????????????????????? | | | +----------------------------------------------------+ Best States ------------- Heat Dissipation 48 Energy Generation 15 Energy Capacity 275 Matter Stores 300 Matter Capacity 300 Sight Range 18 Terrain Scan Range 14 Terrain Scan Density 10 Armor Coverage 225 Utility Shielding 66 Evasion (%) 62 Targeting Accuracy 6 Armor Integrity Analysis 35 Recoil Reduction 4 Kinecelleration 30 Offensive Hacking 10 Relay Coupler Types 26 Relay Coupler Value 1 Item Schematics ----------------- None Robot Schematics ------------------ None Fabricated ------------ Nothing Alien Tech Used ----------------- None Achievements -------------- None Challenges ------------ None Game ------ Seed NeutralizingCloakTendrils Manual? 0 Play Time 00:42:06 Cumulative 276.3 hours Start 2021.02.15 @ 00:26:17 End 2021.02.15 @ 01:10:45 Sessions 1 Manual Loads 0 Difficulty Rogue Special Mode None Game No. 274 Rogue 128 Adventurer 68 Explorer 78 Win Type - Total 21 Types 15/0/4/2/0/0/0/0/0 Lore% 78 Gallery% 86 Achievement% 67 Wizard Run 0 Options --------- ASCII 0 Keyboard 0 Movement Numpad Keybinds 0 Fullscreen 2 Font 18/TerminusBold Map View 76x50 Tactical HUD 1 Map Filters NONE Filters NONE Steam 1 RUN: eb57a2a3-5361-4539-a694-2bdb18a41afc